bitfinex-derivatives/quotes_BNBF0:USTF0_20250331
["timestamp","ask_amount","ask_price","bid_price","bid_amount"]
[1743457844567,0.30301008,606.89,606.06,0.33000033]
[1743457844759,0.28695233,606.94,606.06,0.33000033]
[1743457844760,0.30301008,606.93,606.06,0.33000033]
[1743457844965,0.30301008,606.92,606.06,0.33000033]
[1743457845166,0.30301008,606.93,606.06,0.33000033]
[1743457845470,0.28695233,606.94,606.06,0.33000033]
[1743457845471,0.30301008,606.92,606.06,0.33000033]
[1743457845671,0.30301008,606.93,606.06,0.33000033]
[1743457845870,0.30301008,606.92,606.06,0.33000033]
[1743457846171,0.30301008,606.91,606.06,0.33000033]
[1743457846372,0.30301008,606.93,606.06,0.33000033]
[1743457846971,0.30301008,607.42,606.06,0.33000033]
[1743457847166,0.28693931,606.94,606.06,0.33000033]
[1743457847367,0.30301008,606.93,606.06,0.33000033]
[1743457847571,0.30301008,607.42,606.06,0.33000033]
[1743457847770,0.28688018,606.94,606.06,0.33000033]
[1743457847973,0.30301008,606.93,606.06,0.33000033]
[1743457848174,0.30301008,607.42,606.06,0.33000033]
[1743457848374,0.28687663,606.94,606.06,0.33000033]
[1743457848575,0.30301008,606.93,606.06,0.33000033]
[1743457848770,0.30301008,607.42,606.06,0.33000033]
[1743457848971,0.28687663,606.94,606.06,0.33000033]
[1743457849165,0.30301008,606.93,606.06,0.33000033]
[1743457849373,0.30301008,606.92,606.06,0.33000033]
[1743457849568,0.30301008,606.91,606.06,0.33000033]
[1743457849769,0.30301008,606.93,606.06,0.33000033]
[1743457849974,0.30301008,606.92,606.06,0.33000033]
[1743457850174,0.28687545,606.94,606.06,0.33000033]
[1743457850175,0.30301008,606.93,606.06,0.33000033]
[1743457852374,0.28687545,606.94,606.06,0.33000033]
[1743457854576,0.30301972,606.93,606.06,0.33000033]
[1743457855875,0.3030236,606.92,606.06,0.33000033]
[1743457856070,0.28697954,606.94,606.06,0.33000033]
[1743457856375,0.30302352,606.93,606.06,0.33000033]
[1743457859076,1.106,606.97,606.06,0.33000033]
[1743457859271,0.28699611,606.92,606.06,0.33000033]
[1743457861881,1.106,606.97,606.06,0.33000033]
[1743457862081,0.30302081,606.96,606.06,0.33000033]
[1743457862283,0.28697717,606.91,606.06,0.33000033]
[1743457862481,0.30302081,606.9,606.06,0.33000033]
[1743457865086,0.28696771,606.91,606.06,0.33000033]
[1743457865293,0.30302081,606.9,606.06,0.33000033]
[1743457868089,0.30302081,606.96,606.06,0.33000033]
[1743457868390,0.28695114,606.91,606.06,0.33000033]
[1743457868585,0.30302081,606.9,606.06,0.33000033]
[1743457869686,0.28695114,606.91,606.06,0.33000033]
[1743457869892,0.30302921,606.9,606.06,0.33000033]
[1743457874096,1.106,606.97,606.06,0.33000033]
[1743457874097,0.30302921,606.89,606.06,0.33000033]
[1743457874292,0.2869334,606.91,606.06,0.33000033]
[1743457874690,0.30302918,606.9,606.06,0.33000033]
[1743457875486,0.2869334,606.91,606.06,0.33000033]
[1743457876899,1.106,606.97,606.06,0.33000033]
[1743457877098,0.28697954,606.91,606.06,0.33000033]
[1743457879794,1.106,606.97,606.06,0.33000033]
[1743457879987,0.30304467,606.96,606.06,0.33000033]
[1743457880188,0.28700202,606.9,606.06,0.33000033]
[1743457880794,0.30305673,606.89,606.06,0.33000033]
[1743457882995,0.30305673,607.54,606.06,0.33000033]
[1743457883196,0.28702333,606.88,606.06,0.33000033]
[1743457883391,0.32920185,607.53,606.06,0.33000033]
[1743457883598,0.3030589,607.52,606.06,0.33000033]
[1743457883795,0.28694523,606.87,606.06,0.33000033]
[1743457883995,0.32921268,607.51,606.06,0.33000033]
[1743457884292,0.28694641,606.87,606.06,0.33000033]
[1743457884693,0.3292181,607.5,606.06,0.33000033]
[1743457884997,1.346,606.86,606.06,0.33000033]
[1743457889199,0.28705411,606.85,606.06,0.33000033]
[1743457891794,1.346,606.86,606.06,0.33000033]
[1743457892201,0.28704819,606.84,606.06,0.33000033]
[1743457894793,1.346,606.86,606.06,0.33000033]
[1743457895201,0.28707779,606.83,606.06,0.33000033]
[1743457897801,1.346,606.86,606.06,0.33000033]
[1743457898200,0.28710384,606.82,606.06,0.33000033]
[1743457900899,1.346,606.86,606.06,0.33000033]
[1743457901102,0.28711687,606.81,606.06,0.33000033]
[1743457903803,1.346,606.86,606.06,0.33000033]
[1743457904397,0.28710621,606.85,606.06,0.33000033]
[1743457905000,0.30312317,606.84,606.06,0.33000033]
[1743457905899,0.28710621,606.85,606.06,0.33000033]
[1743457906098,0.30312331,606.84,606.06,0.33000033]
[1743457906999,0.30312331,606.83,606.06,0.33000033]
[1743457907203,0.28711805,606.83,606.06,0.33000033]
[1743457907999,0.30312331,606.82,606.06,0.33000033]
[1743457909301,0.30312328,606.81,606.06,0.33000033]
[1743457909502,0.30312328,606.82,606.06,0.33000033]
[1743457909708,0.30312328,606.81,606.06,0.33000033]
[1743457909899,0.30312328,606.82,606.06,0.33000033]
[1743457910103,0.28710266,606.8,606.06,0.33000033]
[1743457912904,1.346,606.86,606.06,0.33000033]
[1743457913108,0.28708252,606.79,606.06,0.33000033]
[1743457913910,0.30312328,606.78,606.06,0.33000033]
[1743457914207,0.28708252,606.79,606.06,0.33000033]
[1743457915911,1.346,606.86,606.06,0.33000033]
[1743457916113,0.2870991,606.78,606.06,0.33000033]
[1743457916510,1.346,606.86,606.06,0.33000033]
[1743457916814,0.28709792,606.77,606.06,0.33000033]
[1743457917012,1.346,606.86,606.06,0.33000033]
[1743457917414,0.2870991,606.76,606.06,0.33000033]
[1743457917609,1.346,606.86,606.06,0.33000033]
[1743457917915,0.28710976,606.75,606.06,0.33000033]
[1743457918312,1.346,606.86,606.06,0.33000033]
[1743457918513,0.28710976,606.74,606.06,0.33000033]
[1743457918909,1.346,606.86,606.06,0.33000033]
[1743457919114,0.28710976,606.74,606.06,0.33000033]
[1743457919414,1.346,606.86,606.06,0.33000033]
[1743457919814,0.28710976,606.74,606.06,0.33000033]
[1743457920015,1.346,606.86,606.06,0.33000033]
[1743457920315,0.28710858,606.74,606.06,0.33000033]
[1743457920715,1.346,606.86,606.06,0.33000033]
[1743457920911,0.28710858,606.74,606.06,0.33000033]
[1743457921310,1.346,606.86,606.06,0.33000033]
[1743457921517,0.2871145,606.74,606.06,0.33000033]
[1743457921909,1.346,606.86,606.06,0.33000033]
[1743457922108,0.28711331,606.74,606.06,0.33000033]
[1743457922512,1.346,606.86,606.06,0.33000033]
[1743457922714,0.2871145,606.74,606.06,0.33000033]
[1743457923116,1.346,606.86,606.06,0.33000033]
[1743457923315,0.28711331,606.74,606.06,0.33000033]
[1743457923614,1.346,606.86,606.06,0.33000033]
[1743457924116,0.28711331,606.74,606.06,0.33000033]
[1743457924315,1.346,606.86,606.06,0.33000033]
[1743457924511,0.28711213,606.85,606.06,0.33000033]
[1743457926019,0.30311615,606.84,606.06,0.33000033]
[1743457928120,0.28709318,606.83,606.06,0.33000033]
[1743457928420,1.19909318,606.83,606.06,0.33000033]
[1743457928719,0.30311832,606.82,606.06,0.33000033]
[1743457929913,1.19909318,606.83,606.06,0.33000033]
[1743457933923,0.912,606.83,606.06,0.33000033]
[1743457973855,0.30305546,606.82,606.06,0.33000033]
[1743457974257,0.912,606.83,606.06,0.33000033]
[1743457988675,0.30305099,606.82,606.06,0.33000033]
[1743457989172,0.30305099,606.84,606.06,0.33000033]
[1743457989370,0.30305099,606.83,606.07,1.90327515]
[1743457989576,0.30305099,606.84,606.08,0.32998944]
[1743457989773,0.28699492,606.85,606.08,0.32998944]
[1743457989973,0.3030503,606.84,606.08,0.32998944]
[1743457990177,0.30304867,606.83,606.08,0.32998944]
[1743457990377,0.30304867,606.84,606.08,0.32998944]
[1743457990579,0.28699492,606.85,606.08,0.32998944]
[1743457990774,0.30304871,606.84,606.08,0.32998944]
[1743457991181,0.28691802,606.85,606.08,0.32998944]
[1743457991382,0.30304871,606.84,606.08,0.32998944]
[1743457992181,1.233,606.83,606.08,0.32998944]
[1743457992376,0.30304871,606.82,606.08,0.32998944]
[1743457996483,1.233,606.83,606.08,0.32998944]
[1743457996677,0.30305066,606.82,606.08,0.32998944]
[1743457998184,1.233,606.83,606.08,0.32998944]
[1743457998385,0.30305051,606.82,606.08,0.32998944]
[1743457999285,0.30305051,606.82,606.09,1.90327515]
[1743457999487,0.30305051,606.82,606.1,2.2332537]
[1743457999786,0.30305051,606.82,606.11,2.23324825]
[1743457999986,0.30305051,606.82,606.12,1.90327515]
[1743458000781,0.30305051,606.82,606.12,4.62835496]
[1743458002787,0.30305051,606.82,606.12,2.72507981]
[1743458003086,1.233,606.83,606.11,0.3299731]
[1743458003286,0.30305111,606.82,606.11,0.3299731]
[1743458004784,0.30305055,606.81,606.11,0.3299731]
[1743458004990,0.30305055,606.82,606.11,0.3299731]
[1743458006385,0.30305055,606.84,606.11,0.3299731]
[1743458006685,0.30305055,606.83,606.11,0.3299731]
[1743458006886,0.30305055,606.84,606.11,0.3299731]
[1743458007090,0.30305055,606.83,606.11,0.3299731]
[1743458007286,0.30305055,606.82,606.11,0.3299731]
[1743458007593,0.30305055,606.81,606.11,0.3299731]
[1743458007787,0.30305055,606.84,606.11,0.3299731]
[1743458007987,0.30305055,606.83,606.12,1.90327515]
[1743458008187,0.30305055,606.82,606.13,1.90327515]
[1743458008392,0.30305055,606.81,606.12,1.90327515]
[1743458008592,0.28699492,606.85,606.13,1.90327515]
[1743458008593,0.30305055,606.8,606.13,1.90327515]
[1743458008887,1.092,606.82,606.11,0.3299731]
[1743458008888,1.092,606.82,606.12,1.90327515]
[1743458009091,0.30305064,606.81,606.13,1.90327515]
[1743458009295,0.30305064,606.81,606.13,2.72507981]
[1743458009494,0.30305064,606.81,606.13,4.62835496]
[1743458009694,0.30305064,606.81,606.14,1.90327515]
[1743458009890,0.30305064,606.81,606.13,2.72507981]
[1743458010093,0.30305064,606.81,606.13,4.62835496]
[1743458010290,0.30305064,606.81,606.14,1.90327515]
[1743458010694,0.30305064,606.81,606.14,4.62835496]
[1743458010992,0.30305064,606.81,606.15,1.90327515]
[1743458011391,0.30305064,606.81,606.15,2.72507981]
[1743458011897,1.092,606.82,606.15,2.72507981]
[1743458012996,1.092,606.82,606.11,0.3299731]
[1743458026408,0.30304155,606.81,606.12,1.90083792]
[1743458026604,0.30304155,606.81,606.13,2.23080013]
[1743458026805,0.30304155,606.81,606.14,1.90083792]
[1743458027007,1.092,606.82,606.15,1.90083792]
[1743458027311,0.30304209,606.81,606.16,1.90083792]
[1743458027510,0.30304209,606.81,606.17,1.90083792]
[1743458027712,0.30304209,606.81,606.18,4.62591773]
[1743458027906,0.30304209,606.81,606.19,1.90083792]
[1743458028711,0.30304209,606.81,606.2,2.72507981]
[1743458029011,0.28694405,606.87,606.2,2.72507981]
[1743458029210,0.30304517,606.86,606.2,2.72507981]
[1743458029411,0.28694405,606.87,606.2,2.72507981]
[1743458029613,0.30304503,606.86,606.2,2.72507981]
[1743458030106,0.28692985,606.87,606.19,4.62591773]
[1743458030309,0.30304503,606.86,606.2,1.90083792]
[1743458030509,0.30304503,606.86,606.19,2.72507981]
[1743458031211,0.3030452,606.85,606.19,2.72507981]
[1743458031407,0.3030452,606.86,606.2,1.90083792]
[1743458031711,0.3030452,606.85,606.2,4.62591773]
[1743458031911,0.3030452,606.86,606.21,1.90083792]
[1743458032111,0.86,606.84,606.21,1.90083792]
[1743458032410,0.3030452,606.83,606.21,1.90083792]
[1743458032611,0.3030452,606.83,606.14,4.62591773]
[1743458032811,0.3030452,606.83,606.15,1.90083792]
[1743458033012,0.3030452,606.83,606.16,1.90083792]
[1743458033213,0.3030452,606.83,606.17,1.90083792]
[1743458033412,0.3030452,606.83,606.16,0.32994588]
[1743458033610,0.3030452,606.83,606.17,1.90083792]
[1743458033911,0.3030452,606.83,606.18,4.62591773]
[1743458034110,0.3030452,606.83,606.19,1.90083792]
[1743458034811,0.86,606.84,606.19,1.90083792]
[1743458035205,0.86,606.84,606.16,0.32994588]
[1743458039909,0.30304709,606.83,606.16,0.32994588]
[1743458040716,0.86,606.84,606.16,0.32994588]
[1743458050723,0.86,606.84,606.17,1.90083792]
[1743458050919,0.30304733,606.83,606.16,0.32994588]
[1743458058225,0.86,606.84,606.16,0.32994588]
[1743458068140,0.30304663,606.83,606.16,0.32994588]
[1743458069539,0.30304663,606.89,606.16,0.32994588]
[1743458071035,0.28697007,606.9,606.16,0.32994588]
[1743458071233,0.3030424,606.89,606.16,0.32994588]
[1743458072138,0.3030424,606.88,606.16,0.32994588]
[1743458072336,0.3030424,606.87,606.16,0.32994588]
[1743458076144,0.30304081,606.86,606.16,0.32994588]
[1743458076341,0.30304081,606.87,606.16,0.32994588]
[1743458076646,0.952,606.88,606.16,0.32994588]
[1743458119086,0.30302053,606.87,606.16,0.32994588]
[1743458121184,0.952,606.88,606.16,0.32994588]
[1743458131001,0.3030263,606.87,606.16,0.32994588]
[1743458131601,0.3030263,606.94,606.16,0.32994588]
[1743458132206,0.28691684,606.95,606.16,0.32994588]
[1743458132509,0.3030263,606.94,606.16,0.32994588]
[1743458134204,1.136,606.94,606.16,0.32994588]
[1743458147626,0.28706239,606.93,606.16,0.32994588]
[1743458150019,1.136,606.94,606.16,0.32994588]
[1743458150423,0.28706239,606.92,606.16,0.32994588]
[1743458152925,1.136,606.94,606.16,0.32994588]
[1743458153122,0.30308304,606.93,606.16,0.32994588]
[1743458153321,0.28706831,606.91,606.16,0.32994588]
[1743458154123,0.30310613,606.9,606.16,0.32994588]
[1743458156124,0.30310613,607.49,606.16,0.32994588]
[1743458156326,0.28705884,606.89,606.16,0.32994588]
[1743458156523,0.30310613,606.88,606.16,0.32994588]
[1743458156729,0.30310613,607.47,606.16,0.32994588]
[1743458156928,0.28698782,606.88,606.16,0.32994588]
[1743458157126,0.30310613,606.87,606.16,0.32994588]
[1743458157331,0.30310613,606.86,606.16,0.32994588]
[1743458157535,0.28698664,606.87,606.16,0.32994588]
[1743458157726,0.30310613,606.86,606.16,0.32994588]
[1743458158231,0.878,606.85,606.16,0.32994588]
[1743458158633,0.30310741,606.84,606.16,0.32994588]
[1743458159235,0.28704937,606.83,606.16,0.32994588]
[1743458161437,0.878,606.85,606.16,0.32994588]
[1743458161731,0.30310632,606.84,606.16,0.32994588]
[1743458164340,0.30310743,606.83,606.16,0.32994588]
[1743458164535,0.30310743,606.84,606.16,0.32994588]
[1743458169139,0.878,606.85,606.16,0.32994588]
[1743458179056,0.30309848,606.84,606.16,0.32994588]
[1743458179860,0.28704819,606.83,606.16,0.32994588]
[1743458180059,0.30309848,606.82,606.16,0.32994588]
[1743458183260,0.28702451,606.82,606.16,0.32994588]
[1743458183452,0.30309848,606.81,606.16,0.32994588]
[1743458186265,0.30309848,606.8,606.16,0.32994588]
[1743458186459,0.30309848,606.81,606.16,0.32994588]
[1743458187261,0.28700794,606.82,606.16,0.32994588]
[1743458187460,0.30309876,606.81,606.16,0.32994588]
[1743458189263,2.81340943,607.26,606.16,0.32994588]
[1743458189464,0.30309876,607.25,606.16,0.32994588]
[1743458189659,0.28693577,606.82,606.16,0.32994588]
[1743458189864,0.30309876,606.81,606.16,0.32994588]
[1743458190064,0.30309876,606.8,606.16,0.32994588]
[1743458190260,0.28693577,606.82,606.16,0.32994588]
[1743458190667,0.30309848,606.81,606.16,0.32994588]
[1743458191669,1.412,606.8,606.16,0.32994588]
[1743458191973,0.30309848,606.79,606.16,0.32994588]
[1743458193766,1.412,606.8,606.16,0.32994588]
[1743458193966,0.30309854,606.79,606.16,0.32994588]
[1743458196973,1.412,606.8,606.16,0.32994588]
[1743458197170,0.30309848,606.79,606.16,0.32994588]
[1743458203568,0.30309828,606.78,606.16,0.32994588]
[1743458203872,0.30309828,606.77,606.16,0.32994588]
[1743458204072,0.30309828,606.76,606.16,0.32994588]
[1743458204269,0.30309828,606.79,606.16,0.32994588]
[1743458204473,0.30309828,606.78,606.16,0.32994588]
[1743458204772,0.30309828,606.77,606.16,0.32994588]
[1743458204972,0.30309828,606.79,606.16,0.32994588]
[1743458205174,1.412,606.8,606.16,0.32994588]
[1743458205378,0.30309899,606.79,606.16,0.32994588]
[1743458206879,1.412,606.8,606.16,0.32994588]
[1743458207081,0.30309863,606.79,606.16,0.32994588]
[1743458215085,0.30309891,606.78,606.16,0.32994588]
[1743458215385,0.30309891,606.77,606.16,0.32994588]
[1743458215585,0.30309891,606.76,606.16,0.32994588]
[1743458215785,0.30309891,606.75,606.16,0.32994588]
[1743458216085,0.30309891,606.74,606.16,0.32994588]
[1743458216280,0.30309891,606.79,606.16,0.32994588]
[1743458216483,0.30309891,606.78,606.16,0.32994588]
[1743458216684,0.30309925,606.77,606.16,0.32994588]
[1743458216884,0.30309925,606.79,606.16,0.32994588]
[1743458217084,0.30309925,606.78,606.16,0.32994588]
[1743458217285,0.30309925,606.79,606.16,0.32994588]
[1743458217485,0.30309925,606.78,606.16,0.32994588]
[1743458217684,0.30309925,606.79,606.16,0.32994588]
[1743458217886,0.30309925,606.78,606.16,0.32994588]
[1743458218083,0.30309925,606.79,606.16,0.32994588]
[1743458218286,0.30309925,606.78,606.16,0.32994588]
[1743458218489,0.30309925,606.79,606.16,0.32994588]
[1743458219991,0.30309891,606.78,606.16,0.32994588]
[1743458220290,0.30309891,606.77,606.16,0.32994588]
[1743458220593,0.30309891,606.76,606.16,0.32994588]
[1743458220788,0.30309891,606.79,606.16,0.32994588]
[1743458220988,0.30309891,606.78,606.16,0.32994588]
[1743458221185,1.412,606.8,606.16,0.32994588]
[1743458221186,0.3030989,606.77,606.16,0.32994588]
[1743458221385,0.3030989,606.79,606.16,0.32994588]
[1743458221591,0.3030989,606.78,606.16,0.32994588]
[1743458221790,0.3030989,606.77,606.16,0.32994588]
[1743458222093,0.3030989,606.76,606.16,0.32994588]
[1743458222291,0.3030989,606.79,606.16,0.32994588]
[1743458222593,0.3030989,606.78,606.16,0.32994588]
[1743458222791,0.3030989,606.77,606.16,0.32994588]
[1743458222991,0.3030989,606.76,606.16,0.32994588]
[1743458223188,0.3030989,606.79,606.16,0.32994588]
[1743458224394,0.30309926,606.78,606.16,0.32994588]
[1743458224596,0.30309926,606.77,606.16,0.32994588]
[1743458224795,0.30309926,606.76,606.16,0.32994588]
[1743458224995,0.30309926,606.79,606.16,0.32994588]
[1743458225189,0.30309926,606.78,606.16,0.32994588]
[1743458225389,0.30309926,606.77,606.16,0.32994588]
[1743458225595,0.30309926,606.76,606.16,0.32994588]
[1743458225794,0.30309926,606.79,606.16,0.32994588]
[1743458226096,0.3030989,606.78,606.16,0.32994588]
[1743458226291,0.3030989,606.77,606.16,0.32994588]
[1743458226491,0.3030989,606.79,606.16,0.32994588]
[1743458226701,0.3030989,606.78,606.16,0.32994588]
[1743458226897,0.3030989,606.79,606.16,0.32994588]
[1743458227103,0.3030989,606.78,606.16,0.32994588]
[1743458227299,1.412,606.8,606.16,0.32994588]
[1743458227300,0.3030989,606.79,606.16,0.32994588]
[1743458227600,0.30309888,606.78,606.16,0.32994588]
[1743458227805,0.30309888,606.79,606.16,0.32994588]
[1743458228006,0.30309888,606.78,606.16,0.32994588]
[1743458228201,0.30309888,606.77,606.16,0.32994588]
[1743458228407,0.30309888,606.76,606.16,0.32994588]
[1743458228608,0.30309888,606.79,606.16,0.32994588]
[1743458228800,0.30309888,606.78,606.16,0.32994588]
[1743458229006,1.412,606.8,606.16,0.32994588]
[1743458229007,0.30309888,606.79,606.16,0.32994588]
[1743458229208,0.30309888,606.78,606.16,0.32994588]
[1743458229409,0.30309888,606.77,606.16,0.32994588]
[1743458229612,0.30309888,606.79,606.16,0.32994588]
[1743458229909,0.30309888,606.78,606.16,0.32994588]
[1743458230110,0.30309888,606.77,606.16,0.32994588]
[1743458230305,0.30309888,606.79,606.16,0.32994588]
[1743458230503,0.30309888,606.78,606.16,0.32994588]
[1743458230709,1.412,606.8,606.16,0.32994588]
[1743458230907,0.30309868,606.79,606.16,0.32994588]
[1743458237121,1.412,606.8,606.16,0.32994588]
[1743458237313,0.30309897,606.79,606.16,0.32994588]
[1743458237517,0.30309897,606.78,606.16,0.32994588]
[1743458237718,0.30309897,606.79,606.16,0.32994588]
[1743458237918,0.30309897,606.78,606.16,0.32994588]
[1743458238219,0.30309897,606.77,606.16,0.32994588]
[1743458238414,0.30309897,606.79,606.16,0.32994588]
[1743458238614,0.30309897,606.78,606.16,0.32994588]
[1743458238813,0.30309897,606.79,606.16,0.32994588]
[1743458239915,1.412,606.8,606.16,0.32994588]
[1743458246722,0.28707779,606.82,606.16,0.32994588]
[1743458249020,2.51031067,607.66,606.16,0.32994588]
[1743458249224,0.28698427,606.82,606.16,0.32994588]
[1743458249725,1.06,606.82,606.16,0.32994588]
[1743458249925,1.34699847,606.82,606.16,0.32994588]
[1743458250127,0.30309938,606.81,606.16,0.32994588]
[1743458253326,0.3030992,606.8,606.16,0.32994588]
[1743458253527,0.3030992,606.79,606.16,0.32994588]
[1743458253723,1.34706239,606.82,606.16,0.32994588]
[1743458253921,0.30309892,606.81,606.16,0.32994588]
[1743458254829,0.30309932,606.8,606.16,0.32994588]
[1743458255028,0.30309932,606.79,606.16,0.32994588]
[1743458255223,0.30309932,606.81,606.16,0.32994588]
[1743458255423,1.34703753,606.82,606.16,0.32994588]
[1743458255424,0.30309932,606.8,606.16,0.32994588]
[1743458255626,0.30309932,606.79,606.16,0.32994588]
[1743458255827,0.30309932,606.78,606.16,0.32994588]
[1743458256027,0.30309932,606.81,606.16,0.32994588]
[1743458256227,0.30309932,606.8,606.16,0.32994588]
[1743458256428,0.30309932,606.81,606.16,0.32994588]
[1743458257923,1.06,606.82,606.16,0.32994588]
[1743458258125,0.30309876,606.81,606.16,0.32994588]
[1743458261432,0.30309904,606.8,606.16,0.32994588]
[1743458261633,0.30309904,606.81,606.16,0.32994588]
[1743458261828,0.30309904,606.8,606.16,0.32994588]
[1743458262039,0.30309904,606.81,606.16,0.32994588]
[1743458262527,0.28700321,606.82,606.16,0.32994588]
[1743458264234,0.32923978,607.46,606.16,0.32994588]
[1743458264430,0.30309904,607.45,606.16,0.32994588]
[1743458264633,0.28698191,606.82,606.16,0.32994588]
[1743458264828,0.63234966,607.44,606.16,0.32994588]
[1743458264829,0.32925062,607.44,606.16,0.32994588]
[1743458265135,0.28698072,606.82,606.16,0.32994588]
[1743458265530,1.73225062,607.44,606.16,0.32994588]
[1743458265735,0.28697954,606.82,606.16,0.32994588]
[1743458266136,1.73225062,607.44,606.16,0.32994588]
[1743458266436,0.28697362,606.82,606.16,0.32994588]
[1743458266636,1.73225062,607.44,606.16,0.32994588]
[1743458266832,0.30309917,607.43,606.16,0.32994588]
[1743458267032,0.28697244,606.82,606.16,0.32994588]
[1743458267434,1.73225062,607.44,606.16,0.32994588]
[1743458267631,0.28697007,606.82,606.16,0.32994588]
[1743458268137,1.73225062,607.44,606.16,0.32994588]
[1743458268337,0.28696298,606.82,606.16,0.32994588]
[1743458268636,1.73225062,607.44,606.16,0.32994588]
[1743458268837,0.28696179,606.82,606.16,0.32994588]
[1743458269240,1.73225062,607.44,606.16,0.32994588]
[1743458269442,0.28695706,606.82,606.16,0.32994588]
[1743458269845,1.73225062,607.44,606.16,0.32994588]
[1743458270043,0.30309917,607.43,606.16,0.32994588]
[1743458270339,0.30309917,607.42,606.16,0.32994588]
[1743458270638,0.30309917,607.41,606.16,0.32994588]
[1743458270845,0.30309917,607.4,606.16,0.32994588]
[1743458271138,0.30309917,607.39,606.16,0.32994588]
[1743458271343,0.30309917,607.38,606.16,0.32994588]
[1743458271542,0.30309917,607.37,606.16,0.32994588]
[1743458271743,0.30309917,607.36,606.16,0.32994588]
[1743458272043,0.30309917,607.35,606.16,0.32994588]
[1743458272243,0.28695114,607.42,606.16,0.32994588]
[1743458272244,0.30309917,607.34,606.16,0.32994588]
[1743458272539,0.28695114,607.42,606.16,0.32994588]
[1743458272744,0.30309917,607.41,606.16,0.32994588]
[1743458272944,0.30309917,607.4,606.16,0.32994588]
[1743458273146,0.30309917,607.39,606.16,0.32994588]
[1743458273344,2.51031067,607.18,606.16,0.32994588]
[1743458273547,0.30309917,607.17,606.16,0.32994588]
[1743458273745,0.30309917,607.16,606.16,0.32994588]
[1743458273944,0.30309917,607.15,606.16,0.32994588]
[1743458274146,2.51031067,607.18,606.16,0.32994588]
[1743458274346,0.30309917,607.17,606.16,0.32994588]
[1743458274646,0.30309917,607.16,606.16,0.32994588]
[1743458274945,0.30309917,607.15,606.16,0.32994588]
[1743458275141,0.30309917,607.14,606.16,0.32994588]
[1743458275546,0.30309917,607.13,606.16,0.32994588]
[1743458275847,0.30309917,607.12,606.16,0.32994588]
[1743458276047,0.30309917,607.11,606.16,0.32994588]
[1743458276346,0.30309917,607.1,606.16,0.32994588]
[1743458276645,0.30309917,607.09,606.16,0.32994588]
[1743458276847,0.30309917,607.08,606.16,0.32994588]
[1743458277043,0.30309917,607.07,606.16,0.32994588]
[1743458277248,0.30309917,607.06,606.16,0.32994588]
[1743458277449,0.30309917,607.05,606.16,0.32994588]
[1743458277750,0.30309917,607.04,606.16,0.32994588]
[1743458277950,0.30309917,607.03,606.16,0.32994588]
[1743458278150,0.30309917,607.02,606.16,0.32994588]
[1743458278451,0.28695233,607.11,606.16,0.32994588]
[1743458278452,0.30309917,607.01,606.16,0.32994588]
[1743458278647,0.30309917,607.0,606.16,0.32994588]
[1743458278846,0.30309932,606.99,606.16,0.32994588]
[1743458279047,0.30309932,607.1,606.16,0.32994588]
[1743458279243,0.28694523,606.98,606.16,0.32994588]
[1743458279448,0.30309932,606.97,606.16,0.32994588]
[1743458279845,0.28694523,606.97,606.16,0.32994588]
[1743458280045,0.30309932,606.96,606.16,0.32994588]
[1743458281854,0.28694523,606.97,606.16,0.32994588]
[1743458282050,0.30314463,606.96,606.16,0.32994588]
[1743458282251,0.5901798,606.95,606.16,0.32994588]
[1743458282451,0.30314463,606.94,606.16,0.32994588]
[1743458282848,0.30314463,606.93,606.16,0.32994588]
[1743458283054,0.30314463,606.92,606.16,0.32994588]
[1743458285057,2.51031067,607.39,606.16,0.32994588]
[1743458285254,0.63244795,607.38,606.16,0.32994588]
[1743458285457,0.28708016,606.91,606.16,0.32994588]
[1743458285653,0.3031648,606.9,606.16,0.32994588]
[1743458285854,0.3031648,606.89,606.16,0.32994588]
[1743458286059,0.3031648,606.88,606.16,0.32994588]
[1743458286261,0.3031648,606.89,606.16,0.32994588]
[1743458286560,1.419,606.87,606.16,0.32994588]
[1743458286760,0.3031648,606.86,606.16,0.32994588]
[1743458288360,0.30316449,606.85,606.16,0.32994588]
[1743458288562,0.28710739,606.85,606.16,0.32994588]
[1743458288762,0.30316449,606.84,606.16,0.32994588]
[1743458290064,0.30316449,606.83,606.16,0.32994588]
[1743458290363,0.30316449,606.82,606.16,0.32994588]
[1743458290565,0.30316449,606.81,606.16,0.32994588]
[1743458290759,0.30316449,606.8,606.16,0.32994588]
[1743458290960,0.30316449,606.84,606.16,0.32994588]
[1743458291266,0.30316449,606.83,606.16,0.32994588]
[1743458291466,0.28710147,606.79,606.16,0.32994588]
[1743458291664,0.30316449,606.78,606.16,0.32994588]
[1743458293165,0.28710147,606.79,606.16,0.32994588]
[1743458293367,0.30316488,606.78,606.16,0.32994588]
[1743458294269,0.28709792,606.77,606.16,0.32994588]
[1743458294466,0.30316488,606.76,606.16,0.32994588]
[1743458297270,0.30316488,606.86,606.16,0.32994588]
[1743458297572,0.28711687,606.75,606.16,0.32994588]
[1743458297773,0.30316488,606.74,606.16,0.32994588]
[1743458297967,0.30316488,606.86,606.16,0.32994588]